fUST/lending_fUST_20250626
["ID","MTS","AMOUNT","RATE_DAILY","PERIOD"]
[367716580,1750900248915,-460.0,0.00019178,2]
[367716582,1750900248925,-767.34,0.00019178,2]
[367716584,1750900248935,-198.2,0.00019178,2]
[367716586,1750900248944,-460.0,0.00019178,2]
[367716588,1750900248953,-477.73,0.00019178,2]
[367716590,1750900248962,-476.87,0.00019178,2]
[367716592,1750900248972,-686.41,0.00019178,2]
[367716594,1750900248981,-460.0,0.00019178,2]
[367716596,1750900248991,-176.636443,0.00019178,2]
[367716598,1750900249000,-500.36050287,0.00019182,2]
[367716600,1750900249010,-518.87384147,0.00019237,2]
[367716602,1750900249020,-739.45592366,0.00019279,2]
[367716604,1750900249029,-538.07217361,0.00019292,2]
[367716606,1750900249038,-500.0,0.00019328,2]
[367716608,1750900249048,-500.0,0.00019328,2]
[367716610,1750900249056,-500.0,0.00019328,2]
[367716612,1750900249066,-235.89375406,0.00019328,2]
[367716614,1750900249075,-500.0,0.00019328,2]
[367716616,1750900249084,-500.0,0.00019328,2]
[367716618,1750900249094,-500.0,0.00019328,2]
[367716620,1750900249103,-500.0,0.00019328,2]
[367716622,1750900249112,-500.0,0.00019328,2]
[367716624,1750900249122,-500.0,0.00019328,2]
[367716626,1750900249131,-500.0,0.00019328,2]
[367716628,1750900249141,-500.0,0.00019328,2]
[367716630,1750900249151,-500.0,0.00019328,2]
[367716632,1750900249161,-500.0,0.00019328,2]
[367716634,1750900249171,-500.0,0.00019328,2]
[367716637,1750900249181,-396.70044399,0.00019328,2]
[367716639,1750900249190,-500.0,0.00019328,2]
[367716641,1750900249205,-7242.59612896,0.00019329,2]
[367716643,1750900249215,-100000.0,0.00019329,2]
[367716645,1750900249224,-5000.0,0.00019345,2]
[367716646,1750900249234,-25000.0,0.00019345,2]
[367716648,1750900249243,-557.98084403,0.00019347,2]
[367716651,1750900249253,-578.62613526,0.00019402,2]
[367716653,1750900249263,-460.0,0.00019452,2]
[367716655,1750900249272,-699.31,0.00019452,2]
[367716656,1750900249282,-573.72,0.00019452,2]
[367716659,1750900249293,-1914.05,0.00019452,2]
[367716661,1750900249302,-186.06,0.00019452,2]
[367716663,1750900249311,-1605.56,0.00019452,2]
[367716665,1750900249321,-705.61,0.00019452,2]
[367716667,1750900249330,-1108.98,0.00019452,2]
[367716669,1750900249339,-460.0,0.00019452,2]
[367716671,1750900249348,-716.92,0.00019452,2]
[367716673,1750900249358,-460.0,0.00019452,2]
[367716675,1750900249367,-460.0,0.00019452,2]
[367716677,1750900249377,-767.34,0.00019452,2]
[367716679,1750900249386,-460.0,0.00019452,2]
[367716681,1750900249396,-477.73,0.00019452,2]
[367716683,1750900249405,-476.87,0.00019452,2]
[367716685,1750900249414,-686.41,0.00019452,2]
[367716687,1750900249424,-534.28,0.00019452,2]
[367716689,1750900249433,-600.03530226,0.00019457,2]
[367716691,1750900249443,-622.23660845,0.00019512,2]
[367716693,1750900249452,-739.45592366,0.00019555,2]
[367716695,1750900249461,-230.0,0.00019559,2]
[367716697,1750900249469,-645.25936296,0.00019567,2]
[367716698,1750900249479,-669.13395939,0.00019622,2]
[367716700,1750900249488,-587.0,0.00019631,2]
[367716702,1750900249497,-693.89191589,0.00019677,2]
[367716705,1750900249507,-530.4,0.00019726,2]
[367716707,1750900249516,-699.31,0.00019726,2]
[367716709,1750900249526,-573.72,0.00019726,2]
[367716711,1750900249535,-1914.05,0.00019726,2]
[367716713,1750900249543,-1605.56,0.00019726,2]
[367716715,1750900249553,-705.61,0.00019726,2]
[367716717,1750900249562,-1108.98,0.00019726,2]
[367716719,1750900249571,-460.0,0.00019726,2]
[367716720,1750900249580,-716.92,0.00019726,2]
[367716722,1750900249589,-460.0,0.00019726,2]
[367716724,1750900249598,-460.0,0.00019726,2]
[367716726,1750900249608,-767.34,0.00019726,2]
[367716728,1750900249617,-460.0,0.00019726,2]
[367716730,1750900249626,-477.73,0.00019726,2]
[367716732,1750900249635,-151.0,0.00019726,2]
[367716734,1750900249645,-476.87,0.00019726,2]
[367716736,1750900249654,-686.41,0.00019726,2]
[367716738,1750900249663,-208.0,0.00019726,3]
[367716740,1750900249673,-719.56591678,0.00019732,2]
[367716742,1750900249682,-177.794,0.00019741,2]
[367716755,1750900249691,-746.1898557,0.00019787,2]
[367716756,1750900249837,-500.0,0.00019831,2]
[367716757,1750900249847,-500.0,0.00019831,2]
[367716758,1750900249856,-739.45592366,0.00019831,2]
[367716759,1750900249865,-500.0,0.00019836,2]
[367716760,1750900249874,-500.0,0.00019836,2]
[367716761,1750900249884,-500.0,0.00019836,2]
[367716762,1750900249893,-500.0,0.00019836,2]
[367716763,1750900249902,-500.0,0.00019836,2]
[367716764,1750900249912,-500.0,0.00019836,2]
[367716765,1750900249922,-500.0,0.00019836,2]
[367716766,1750900249938,-500.0,0.00019836,2]
[367716767,1750900249948,-773.79888036,0.00019842,2]
[367716768,1750900249958,-5000.0,0.00019893,2]
[367716769,1750900249966,-25000.0,0.00019893,2]
[367716770,1750900249975,-151.0,0.00019893,2]
[367716771,1750900249985,-151.0,0.00019893,2]
[367716772,1750900249994,-151.0,0.00019893,2]
[367716773,1750900250004,-151.0,0.00019893,2]
[367716774,1750900250013,-151.0,0.00019893,2]
[367716775,1750900250022,-151.0,0.00019893,2]
[367716776,1750900250032,-208.2835,0.00019893,2]
[367716777,1750900250041,-208.2835,0.00019893,2]
[367716778,1750900250050,-151.0,0.00019893,2]
[367716779,1750900250060,-299.723613,0.00019893,2]
[367716780,1750900250070,-299.723613,0.00019893,2]
[367716782,1750900250079,-151.0,0.00019893,2]
[367716784,1750900250088,-151.0,0.00019893,2]
[367716786,1750900250097,-151.0,0.00019893,2]
[367716788,1750900250106,-151.0,0.00019893,2]
[367716789,1750900250115,-1731.99317622,0.000199,2]
[367716790,1750900250124,-500.0,0.00019975,2]
[367716791,1750900250134,-500.0,0.00019975,2]
[367716792,1750900250145,-500.0,0.00019993,2]
[367716793,1750900250154,-500.0,0.00019993,2]
[367716794,1750900250164,-500.0,0.00019993,2]
[367716795,1750900250174,-500.0,0.00019993,2]
[367716796,1750900250183,-500.0,0.00019993,2]
[367716797,1750900250193,-500.0,0.00019993,2]
[367716798,1750900250202,-380.54770024,0.00019993,2]
[367716799,1750900250211,-500.0,0.00019993,2]
[367716800,1750900250224,-500.0,0.00019993,2]
[367716801,1750900250234,-500.0,0.00019993,2]
[367716802,1750900250244,-500.0,0.00019993,2]
[367716803,1750900250253,-500.0,0.00019993,2]
[367716804,1750900250263,-500.0,0.00019993,2]
[367716805,1750900250272,-500.0,0.00019993,2]
[367716806,1750900250281,-600.0,0.00019993,2]
[367716807,1750900250294,-500.0,0.00019993,2]
[367716808,1750900250304,-500.0,0.00019993,2]
[367716809,1750900250314,-500.0,0.00019993,2]
[367716810,1750900250325,-500.0,0.00019993,2]
[367716811,1750900250334,-291.90976294,0.0002,2]
[367716812,1750900250520,-28806.83285843,0.0002,2]
[367716813,1750900250530,-6866.0,0.0002,2]
[367716814,1750900250541,-75291.59962684,0.0002,7]
[367716815,1750900250551,-151.0,0.0002,2]
[367716817,1750900250560,-151.0,0.0002,2]
[367716819,1750900250569,-151.0,0.0002,2]
[367716821,1750900250578,-151.0,0.0002,2]
[367716823,1750900250588,-699.31,0.0002,2]
[367716825,1750900250597,-573.72,0.0002,2]
[367716827,1750900250606,-1914.05,0.0002,2]
[367716829,1750900250616,-230.201491,0.0002,2]
[367716831,1750900250625,-160.0,0.0002,7]
[367716833,1750900250635,-230.201491,0.0002,2]
[367716835,1750900250644,-1605.56,0.0002,2]
[367716837,1750900250653,-705.61,0.0002,2]
[367716839,1750900250662,-214.918621,0.0002,2]
[367716841,1750900250671,-1108.98,0.0002,2]
[367716842,1750900250681,-460.0,0.0002,2]
[367716844,1750900250689,-716.92,0.0002,2]
[367716846,1750900250698,-460.0,0.0002,2]
[367716848,1750900250707,-164.21,0.0002,2]
[367716849,1750900250717,-767.34,0.0002,2]
[367716850,1750900250726,-460.0,0.0002,2]
[367716851,1750900250735,-477.73,0.0002,2]
[367716852,1750900250744,-476.87,0.0002,2]
[367716853,1750900250753,-686.41,0.0002,2]
[367716854,1750900250762,-846.80634355,0.0002,7]
[367716855,1750900250772,-12558.06783089,0.0002,7]
[367716856,1750900250781,-213.69531788,0.0002,7]
[367716857,1750900250790,-267.1928808,0.00020061,2]
[367716858,1750900250799,-739.45592366,0.00020107,2]
[367716859,1750900250808,-215.0738,0.00020166,2]
[367716860,1750900250818,-151.0,0.00020166,2]
[367716861,1750900250827,-498.187486,0.00020187,2]
[367716862,1750900250836,-273.097111,0.00020273,2]
[367716863,1750900250845,-151.0,0.00020273,2]
[367716864,1750900250854,-151.0,0.00020273,2]
[367716865,1750900250864,-151.0,0.00020273,2]
[367716866,1750900250873,-179.080313,0.00020273,2]
[367716867,1750900250882,-151.0,0.00020273,2]
[367716868,1750900250892,-151.0,0.00020273,2]
[367716869,1750900250902,-151.0,0.00020273,2]
[367716870,1750900250913,-699.31,0.00020273,2]
[367716871,1750900250923,-573.72,0.00020273,2]
[367716872,1750900250938,-1914.05,0.00020273,2]
[367716873,1750900250952,-1605.56,0.00020273,2]
[367716874,1750900250968,-705.61,0.00020273,2]
[367716875,1750900250980,-1108.98,0.00020273,2]
[367716876,1750900250991,-460.0,0.00020273,2]
[367716877,1750900251005,-716.92,0.00020273,2]
[367716878,1750900251017,-404.89,0.00020273,2]
[367716879,1750900251030,-767.34,0.00020273,2]
[367716880,1750900251045,-460.0,0.00020273,2]
[367716881,1750900251058,-477.73,0.00020273,2]
[367716882,1750900251070,-476.87,0.00020273,2]
[367716883,1750900251084,-686.41,0.00020273,2]
[367716884,1750900251098,-1007.2504871,0.00020379,2]
[367716885,1750900251110,-1000.0,0.00020379,2]
[367716886,1750900251123,-500.0,0.00020382,2]
[367716887,1750900251135,-500.0,0.00020382,2]
[367716888,1750900251148,-500.0,0.00020382,2]
[367716889,1750900251161,-500.0,0.00020382,2]
[367716890,1750900251173,-500.0,0.00020382,2]
[367716891,1750900251184,-500.0,0.00020382,2]
[367716892,1750900251194,-500.0,0.00020382,2]
[367716893,1750900251206,-500.0,0.00020382,2]
[367716894,1750900251217,-151.0,0.00020382,2]
[367716895,1750900251230,-151.0,0.00020382,2]
[367716896,1750900251242,-151.0,0.00020382,2]
[367716897,1750900251255,-151.0,0.00020382,2]
[367716898,1750900251267,-151.0,0.00020382,2]
[367716899,1750900251281,-183.28015549,0.00020382,2]
[367716900,1750900251294,-500.0,0.00020382,2]
[367716901,1750900251308,-151.0,0.00020382,2]
[367716902,1750900251318,-151.0,0.00020382,2]
[367716903,1750900251329,-500.0,0.00020382,2]
[367716904,1750900251340,-500.0,0.00020382,2]
[367716905,1750900251351,-500.0,0.00020382,2]
[367716906,1750900251364,-151.0,0.00020382,2]
[367716907,1750900251378,-151.8409273,0.00020382,2]
[367716908,1750900251390,-151.0,0.00020382,2]
[367716909,1750900251401,-151.0,0.00020382,2]
[367716910,1750900251414,-152.14900843,0.00020382,2]
[367716911,1750900251427,-500.0,0.00020382,2]
[367716912,1750900251439,-151.0,0.00020382,2]
[367716913,1750900251451,-151.0,0.00020382,2]
[367716914,1750900251462,-151.0,0.00020382,2]
[367716915,1750900251474,-151.0,0.00020382,2]
[367716916,1750900251486,-151.0,0.00020382,2]
[367716917,1750900251497,-151.0,0.00020382,2]
[367716918,1750900251509,-739.45592366,0.00020383,3]
[367716919,1750900251523,-1000.0,0.00020384,2]
[367716920,1750900251536,-1000.0,0.00020384,2]
[367716921,1750900251548,-1000.0,0.00020384,2]
[367716922,1750900251560,-659.40071726,0.00020384,2]
[367716923,1750900251571,-995.69823793,0.00020384,2]
[367716924,1750900251582,-1000.0,0.00020384,2]
[367716925,1750900251593,-1000.0,0.00020384,2]
[367716926,1750900251605,-1000.0,0.00020384,2]
[367716927,1750900251616,-500.0,0.00020409,2]
[367716928,1750900251627,-500.0,0.00020409,2]
[367716929,1750900251639,-500.0,0.00020409,2]
[367716930,1750900251651,-500.0,0.00020409,2]
[367716931,1750900251662,-500.0,0.00020409,2]
[367716932,1750900251673,-500.0,0.00020409,2]
[367716933,1750900251685,-500.0,0.00020409,2]
[367716934,1750900251697,-500.0,0.00020409,2]
[367716935,1750900251708,-151.0,0.00020409,2]
[367716936,1750900251720,-151.0,0.00020409,2]
[367716937,1750900251731,-151.0,0.00020409,2]
[367716938,1750900251743,-151.0,0.00020409,2]
[367716939,1750900251754,-151.0,0.00020409,2]
[367716940,1750900251765,-500.0,0.00020409,2]
[367716941,1750900251776,-151.0,0.00020409,2]
[367716942,1750900251788,-151.0,0.00020409,2]
[367716943,1750900251799,-500.0,0.00020409,2]
[367716944,1750900251810,-500.0,0.00020409,2]
[367716945,1750900251821,-500.0,0.00020409,2]
[367716946,1750900251833,-151.0,0.00020409,2]
[367716947,1750900251844,-151.0,0.00020409,2]
[367716948,1750900251855,-151.0,0.00020409,2]
[367716949,1750900251866,-500.0,0.00020409,2]
[367716950,1750900251879,-198.0,0.00020409,2]
[367716951,1750900251890,-151.0,0.00020409,2]
[367716952,1750900251901,-151.0,0.00020409,2]
[367716953,1750900251913,-500.0,0.00020437,2]
[367716954,1750900251925,-500.0,0.00020437,2]
[367716955,1750900251935,-500.0,0.00020437,2]
[367716956,1750900251944,-500.0,0.00020437,2]
[367716957,1750900251956,-500.0,0.00020437,2]
[367716958,1750900251967,-500.0,0.00020437,2]
[367716959,1750900251978,-500.0,0.00020437,2]
[367716960,1750900251988,-500.0,0.00020437,2]
[367716961,1750900251999,-151.0,0.00020437,2]
[367716962,1750900252008,-151.0,0.00020437,2]
[367716963,1750900252019,-151.0,0.00020437,2]
[367716964,1750900252032,-151.0,0.00020437,2]
[367716965,1750900252042,-500.0,0.00020437,2]
[367716966,1750900252051,-151.0,0.00020437,2]
[367716967,1750900252062,-151.0,0.00020437,2]
[367716968,1750900252072,-500.0,0.00020437,2]
[367716969,1750900252081,-500.0,0.00020437,2]
[367716970,1750900252090,-500.0,0.00020437,2]
[367716971,1750900252099,-198.76709495,0.00020437,2]
[367716972,1750900252108,-151.0,0.00020437,2]
[367716973,1750900252118,-151.0,0.00020437,2]
[367716974,1750900252127,-500.0,0.00020437,2]
[367716975,1750900252137,-151.0,0.00020437,2]
[367716976,1750900252146,-151.0,0.00020437,2]
[367716977,1750900252156,-5000.0,0.00020441,2]
[367716978,1750900252166,-25000.0,0.00020441,2]
[367716979,1750900252176,-151.788473,0.00020441,2]
[367716980,1750900252186,-157.264208,0.00020441,2]
[367716981,1750900252195,-151.0,0.00020441,2]
[367716982,1750900252205,-151.0,0.00020441,2]
[367716983,1750900252218,-208.2835,0.00020441,2]
[367716984,1750900252228,-208.2835,0.00020441,2]
[367716985,1750900252237,-151.0,0.00020441,2]
[367716986,1750900252247,-299.723613,0.00020441,2]
[367716987,1750900252256,-299.723613,0.00020441,2]
[367716988,1750900252267,-151.0,0.00020441,2]
[367716989,1750900252276,-151.0,0.00020441,2]
[367716990,1750900252287,-151.0,0.00020441,2]
[367716991,1750900252296,-151.0,0.00020441,2]
[367716992,1750900252307,-500.0,0.00020464,2]
[367716993,1750900252317,-561.55586604,0.00020464,2]
[367716994,1750900252328,-151.0,0.00020464,2]
[367716995,1750900252339,-500.0,0.00020464,2]
[367716996,1750900252349,-500.0,0.00020464,2]
[367716997,1750900252358,-500.0,0.00020464,2]
[367716998,1750900252593,-500.0,0.00020464,2]
[367716999,1750900252608,-500.0,0.00020464,2]
[367717000,1750900252620,-292.00950483,0.00020464,2]
[367717001,1750900252629,-192.4422019,0.00020464,2]
[367717002,1750900252639,-151.0,0.00020464,2]
[367717003,1750900252648,-151.0,0.00020464,2]
[367717004,1750900252657,-500.0,0.00020464,2]
[367717005,1750900252667,-500.0,0.00020464,2]
[367717006,1750900252677,-164.70744157,0.00020464,2]
[367717007,1750900252686,-500.0,0.00020464,2]
[367717008,1750900252695,-151.0,0.00020464,2]
[367717009,1750900252705,-151.0,0.00020464,2]
[367717010,1750900252715,-500.0,0.00020492,2]
[367717011,1750900252724,-422.97510472,0.00020492,2]
[367717012,1750900252734,-151.0,0.00020492,2]
[367717013,1750900252743,-500.0,0.00020492,2]
[367717014,1750900252752,-500.0,0.00020492,2]
[367717015,1750900252761,-500.0,0.00020492,2]
[367717016,1750900252771,-246.01127713,0.00020492,2]
[367717017,1750900252781,-245.58172341,0.00020492,2]
[367717018,1750900252790,-248.78848359,0.00020492,2]
[367717019,1750900252799,-329.16333721,0.00020492,2]
[367717020,1750900252809,-500.0,0.00020492,2]
[367717021,1750900252818,-245.0,0.00020492,2]
[367717022,1750900252828,-500.0,0.00020519,2]
[367717023,1750900252838,-500.0,0.00020519,2]
[367717024,1750900252849,-500.0,0.00020519,2]
[367717025,1750900252858,-199.5341841,0.00020519,2]
[367717026,1750900252867,-254.97515036,0.00020519,2]
[367717027,1750900252877,-965.0,0.00020534,2]
[367717028,1750900252887,-2161.0,0.00020534,2]
[367717029,1750900252897,-654.0,0.00020534,2]
[367717030,1750900252906,-1000.0,0.00020541,2]
[367717031,1750900252916,-340.68014058,0.00020541,2]
[367717032,1750900252926,-1000.0,0.00020541,2]
[367717033,1750900252935,-550.64636519,0.00020541,2]
[367717034,1750900252944,-1000.0,0.00020541,2]
[367717035,1750900252954,-1000.0,0.00020541,2]
[367717036,1750900252964,-1000.0,0.00020541,2]
[367717037,1750900252973,-1000.0,0.00020541,2]
[367717038,1750900252982,-1000.0,0.00020541,2]
[367717039,1750900252991,-1000.0,0.00020541,2]
[367717040,1750900253000,-1000.0,0.00020541,2]
[367717041,1750900253010,-1000.0,0.00020541,2]
[367717042,1750900253019,-1200.0,0.00020541,2]
[367717043,1750900253028,-192.76370984,0.00020541,2]
[367717044,1750900253038,-1000.0,0.00020541,2]
[367717045,1750900253048,-1000.0,0.00020541,2]
[367717046,1750900253057,-271.97,0.00020546,2]
[367717047,1750900253067,-500.0,0.00020546,2]
[367717048,1750900253076,-500.0,0.00020547,14]
[367717049,1750900253086,-699.31,0.00020547,2]
[367717050,1750900253095,-573.72,0.00020547,2]
[367717051,1750900253105,-1914.05,0.00020547,2]
[367717052,1750900253114,-1605.56,0.00020547,2]
[367717053,1750900253124,-705.61,0.00020547,2]
[367717054,1750900253134,-1108.98,0.00020547,2]
[367717055,1750900253143,-716.92,0.00020547,2]
[367717056,1750900253152,-326.28,0.00020547,2]
[367717057,1750900253161,-767.34,0.00020547,2]
[367717058,1750900253170,-460.0,0.00020547,2]
[367717059,1750900253179,-477.73,0.00020547,2]
[367717060,1750900253188,-476.87,0.00020547,2]
[367717061,1750900253198,-686.41,0.00020547,2]
[367717062,1750900253207,-500.0,0.00020574,2]
[367717063,1750900253216,-3910.18,0.000206,2]
[367717064,1750900253229,-154.16487973,0.00020601,2]
[367717065,1750900253238,-289.785,0.00020602,2]
[367717066,1750900253247,-739.45592366,0.00020659,3]
[367717067,1750900253256,-2200.0,0.00020709,2]
[367717068,1750900253265,-699.31,0.00020821,2]
[367717069,1750900253275,-573.72,0.00020821,2]
[367717070,1750900253284,-1914.05,0.00020821,2]
[367717071,1750900253293,-1605.56,0.00020821,2]
[367717072,1750900253302,-705.61,0.00020821,2]
[367717073,1750900253311,-1108.98,0.00020821,2]
[367717074,1750900253320,-716.92,0.00020821,2]
[367717075,1750900253330,-767.34,0.00020821,2]
[367717076,1750900253340,-460.0,0.00020821,2]
[367717077,1750900253351,-477.73,0.00020821,2]
[367717078,1750900253361,-476.87,0.00020821,2]
[367717079,1750900253371,-686.41,0.00020821,2]
[367717080,1750900253382,-1500.0,0.00020927,2]
[367717081,1750900253392,-1100.06770585,0.00020932,2]
[367717082,1750900253401,-1500.0,0.00020932,2]
[367717083,1750900253414,-1500.0,0.00020932,2]
[367717084,1750900253424,-500.0,0.00020932,2]
[367717085,1750900253434,-1071.10072424,0.00020932,2]
[367717086,1750900253443,-1500.0,0.00020932,2]
[367717087,1750900253453,-739.45592366,0.00020934,4]
[367717088,1750900253462,-500.0,0.00020958,15]
[367717089,1750900253471,-5000.0,0.00020989,2]
[367717090,1750900253480,-25000.0,0.00020989,2]
[367717091,1750900253489,-3000.0,0.00021,2]
[367717092,1750900253498,-160.0,0.00021,2]
[367717093,1750900253508,-3000.0,0.0002101,2]
[367717094,1750900253517,-3000.0,0.0002102,2]
[367717095,1750900253526,-3000.0,0.0002103,2]
[367717096,1750900253535,-3000.0,0.0002104,2]
[367717097,1750900253544,-3000.0,0.0002105,2]
[367717098,1750900253553,-151.0,0.00021059,2]
[367717099,1750900253562,-151.0,0.00021059,2]
[367717100,1750900253571,-151.000001,0.00021059,2]
[367717101,1750900253580,-151.0,0.00021059,2]
[367717102,1750900253589,-1254.398886,0.00021059,2]
[367717103,1750900253598,-1254.398886,0.00021059,2]
[367717104,1750900253607,-220.991151,0.00021059,2]
[367717105,1750900253616,-220.991151,0.00021059,2]
[367717106,1750900253625,-3000.0,0.0002106,2]
[367717107,1750900253636,-3000.0,0.0002107,2]
[367717108,1750900253645,-3000.0,0.0002108,2]
[367717109,1750900253654,-1000.44571026,0.00021089,2]
[367717110,1750900253663,-1500.0,0.00021089,2]
[367717111,1750900253673,-1500.0,0.00021089,2]
[367717112,1750900253682,-1149.49804868,0.00021089,2]
[367717113,1750900253691,-1500.0,0.00021089,2]
[367717114,1750900253701,-1152.62633796,0.00021089,2]
[367717115,1750900253711,-503.74794369,0.00021089,2]
[367717116,1750900253721,-1500.0,0.00021089,2]
[367717117,1750900253730,-1500.0,0.00021089,2]
[367717118,1750900253740,-1800.0,0.00021089,2]
[367717119,1750900253749,-1191.32548711,0.00021089,2]
[367717120,1750900253759,-1547.30818192,0.00021089,2]
[367717121,1750900253768,-1500.0,0.00021089,2]
[367717122,1750900253778,-3000.0,0.0002109,2]
[367717123,1750900253788,-151.0,0.0002109,2]
[367717124,1750900253797,-151.0,0.00021095,2]
[367717125,1750900253806,-151.0,0.00021095,2]
[367717126,1750900253815,-151.0,0.00021095,2]
[367717127,1750900253825,-699.31,0.00021095,2]
[367717128,1750900253835,-573.72,0.00021095,2]
[367717129,1750900253844,-1914.05,0.00021095,2]
[367717130,1750900253853,-230.201491,0.00021095,2]
[367717131,1750900253863,-230.201491,0.00021095,2]
[367717132,1750900253872,-1605.56,0.00021095,2]
[367717133,1750900253883,-705.61,0.00021095,2]
[367717134,1750900253893,-1108.98,0.00021095,2]
[367717135,1750900253904,-716.92,0.00021095,2]
[367717136,1750900253914,-767.34,0.00021095,2]
[367717137,1750900253925,-578.75,0.00021095,2]
[367717138,1750900253935,-477.73,0.00021095,2]
[367717139,1750900253943,-476.87,0.00021095,2]
[367717140,1750900253953,-686.41,0.00021095,2]
[367717141,1750900253962,-3000.0,0.000211,2]
[367717142,1750900253971,-2611.99,0.000211,2]
[367717143,1750900253981,-3088.129082,0.0002111,2]
[367717144,1750900253990,-417.72871327,0.00021168,2]
[367717145,1750900254000,-500.0,0.00021205,2]
[367717146,1750900254009,-500.0,0.00021205,2]
[367717147,1750900254019,-739.45592366,0.0002121,4]
[367717148,1750900254028,-500.0,0.00021219,2]
[367717149,1750900254038,-500.0,0.00021219,2]
[367717150,1750900254049,-4000.0,0.0002124,4]
[367717151,1750900254058,-500.0,0.00021243,2]
[367717152,1750900254069,-267.1928808,0.00021302,2]
[367717153,1750900254078,-500.0,0.0002132,2]
[367717154,1750900254087,-500.0,0.0002132,2]
[367717155,1750900254096,-500.0,0.00021369,16]
[367717156,1750900254105,-151.0,0.00021369,2]
[367717157,1750900254113,-151.0,0.00021369,2]
[367717158,1750900254122,-151.0,0.00021369,2]
[367717159,1750900254131,-151.0,0.00021369,2]
[367717160,1750900254140,-151.0,0.00021369,2]
[367717161,1750900254149,-699.31,0.00021369,2]
[367717162,1750900254159,-573.72,0.00021369,2]
[367717163,1750900254167,-1914.05,0.00021369,2]
[367717164,1750900254176,-1605.56,0.00021369,2]
[367717165,1750900254185,-705.61,0.00021369,2]
[367717166,1750900254194,-1108.98,0.00021369,2]
[367717167,1750900254203,-716.92,0.00021369,2]
[367717168,1750900254214,-767.34,0.00021369,2]
[367717169,1750900254224,-477.73,0.00021369,2]
[367717170,1750900254233,-476.87,0.00021369,2]
[367717171,1750900254245,-686.41,0.00021369,2]
[367717172,1750900254256,-823.0,0.00021454,2]
[367717173,1750900254268,-2000.0,0.00021475,2]
[367717174,1750900254279,-1039.31541604,0.0002148,2]
[367717175,1750900254290,-1963.84020193,0.0002148,2]
[367717176,1750900254301,-2106.865118,0.0002148,2]
[367717177,1750900254311,-739.45592366,0.00021486,5]
[367717178,1750900254325,-2000.0,0.000215,2]
[367717179,1750900254336,-223.0315306,0.00021535,2]
[367717180,1750900254345,-25000.0,0.00021537,2]
[367717181,1750900254355,-151.0,0.00021537,2]
[367717182,1750900254365,-151.0,0.00021537,2]
[367717183,1750900254375,-208.2835,0.00021537,2]
[367717184,1750900254384,-208.2835,0.00021537,2]
[367717185,1750900254393,-151.0,0.00021537,2]
[367717186,1750900254403,-299.723613,0.00021537,2]
[367717187,1750900254413,-299.723613,0.00021537,2]
[367717188,1750900254422,-151.0,0.00021537,2]
[367717189,1750900254432,-151.0,0.00021537,2]
[367717190,1750900254443,-1120.989149,0.00021542,4]
[367717191,1750900254452,-758.7674914,0.00021583,2]
[367717192,1750900254465,-250.0,0.00021588,2]